fUSD/lending_fUSD_20250228
["ID","MTS","AMOUNT","RATE_DAILY","PERIOD"]
[354839357,1740731447971,-151.0,0.00015,2]
[354839358,1740731447981,-151.0,0.00015,2]
[354839359,1740731447990,-151.0,0.00015,2]
[354839360,1740731447999,-151.0,0.00015,2]
[354839361,1740731448010,-152.316972,0.00015,2]
[354839362,1740731448021,-162.198915,0.00015,2]
[354839363,1740731448031,-151.0,0.00015,2]
[354839364,1740731448041,-151.0,0.00015,2]
[354839365,1740731448051,-151.0,0.00015,2]
[354839366,1740731448062,-215.679022,0.00015,2]
[354839367,1740731448078,-151.0,0.00015,2]
[354839368,1740731448089,-151.0,0.00015,2]
[354839369,1740731448100,-151.0,0.00015,2]
[354839370,1740731448110,-151.0,0.00015,2]
[354839371,1740731448120,-151.0,0.00015,2]
[354839372,1740731448131,-151.0,0.00015,2]
[354839373,1740731448142,-151.0,0.00015,2]
[354839374,1740731448153,-151.0,0.00015,2]
[354839375,1740731448163,-200.47876,0.00015,2]
[354839376,1740731448173,-151.0,0.00015,2]
[354839377,1740731448183,-151.0,0.00015,2]
[354839378,1740731448194,-190.08379,0.00015,2]
[354839379,1740731448204,-178.944889,0.00015,2]
[354839380,1740731448214,-178.944889,0.00015,2]
[354839381,1740731448224,-178.944889,0.00015,2]
[354839382,1740731448235,-641.96,0.00015667,2]
[354839383,1740731448246,-500.0,0.00015781,2]
[354839384,1740731448256,-152.0,0.00016031,2]
[354839385,1740731448266,-450.0,0.00016335,2]
[354839386,1740731448276,-250.0,0.00016362,2]
[354839387,1740731448287,-150.0,0.0001639,2]
[354839388,1740731448298,-150.0,0.0001639,2]
[354839389,1740731448308,-450.0,0.0001639,2]
[354839390,1740731448323,-500.0,0.00016493,2]
[354839391,1740731448333,-184.59,0.00016501,2]
[354839392,1740731448343,-23055.32784663,0.00016548,2]
[354839393,1740731448354,-151.0,0.00016548,2]
[354839394,1740731448364,-275.705572,0.00016548,2]
[354839395,1740731448374,-2000.0,0.00016578,2]
[354839396,1740731448384,-2751.0,0.00016591,2]
[354839397,1740731448396,-171.53,0.00016642,2]
[354839398,1740731448405,-150.0,0.00016645,2]
[354839399,1740731448415,-1096.0,0.00016657,2]
[354839400,1740731448426,-1852.42,0.00016667,2]
[354839401,1740731448435,-151.0,0.00016668,2]
[354839402,1740731448444,-258.188604,0.00016668,2]
[354839403,1740731448454,-151.0,0.00016668,2]
[354839404,1740731448463,-151.0,0.00016668,2]
[354839405,1740731448473,-151.0,0.00016668,2]
[354839406,1740731448482,-151.0,0.00016668,2]
[354839407,1740731448492,-151.0,0.00016668,2]
[354839408,1740731448502,-151.0,0.00016668,2]
[354839409,1740731448511,-23900.0,0.00016668,2]
[354839410,1740731448521,-171.94,0.00016715,2]
[354839411,1740731448532,-1310.81,0.00016769,2]
[354839412,1740731448542,-153.37,0.0001683,2]
[354839413,1740731448553,-1082.79829437,0.0001688,2]
[354839414,1740731448565,-150.0,0.00016897,7]
[354839415,1740731448579,-153.37,0.00016929,2]
[354839416,1740731448591,-250.0,0.00016929,2]
[354839417,1740731448602,-153.37,0.00017028,2]
[354839418,1740731448612,-522.44,0.00017122,2]
[354839419,1740731448622,-153.37,0.00017127,2]
[354839420,1740731448633,-179.81,0.00017172,2]
[354839421,1740731448644,-153.37,0.00017226,2]
[354839422,1740731448653,-153.37,0.00017325,2]
[354839423,1740731448663,-153.37,0.00017424,2]
[354839424,1740731448673,-178.62,0.00017432,2]
[354839425,1740731448682,-1000.0,0.00017503,2]
[354839426,1740731448691,-153.37,0.00017523,2]
[354839427,1740731448700,-200.0,0.00017585,2]
[354839428,1740731448710,-153.37,0.00017622,2]
[354839429,1740731448720,-153.893052,0.00017678,2]
[354839430,1740731448730,-151.0,0.00017678,2]
[354839431,1740731448740,-151.0,0.00017678,2]
[354839432,1740731448749,-151.0,0.00017678,2]
[354839433,1740731448759,-151.0,0.00017678,2]
[354839434,1740731448769,-151.0,0.00017678,2]
[354839435,1740731448779,-230.855334,0.00017678,2]
[354839436,1740731448788,-153.37,0.00017721,2]
[354839437,1740731448798,-507.74,0.00017723,2]
[354839438,1740731448807,-153.37,0.0001782,2]
[354839439,1740731448819,-42381.0,0.00017919,2]
[354839440,1740731448829,-153.37,0.00017919,2]
[354839441,1740731448838,-641.96,0.00017931,2]
[354839442,1740731448848,-151.0,0.00017948,2]
[354839443,1740731448858,-151.0,0.00017948,2]
[354839444,1740731448869,-153.03558,0.00017948,2]
[354839445,1740731448880,-151.0,0.00017948,2]
[354839446,1740731448889,-157.052759,0.00017948,2]
[354839447,1740731448900,-151.0,0.00017948,2]
[354839448,1740731448909,-152.935523,0.00017948,2]
[354839449,1740731448919,-151.0,0.00017948,2]
[354839450,1740731448930,-151.0,0.00017948,2]
[354839451,1740731448940,-151.0,0.00017948,2]
[354839452,1740731448950,-151.0,0.00017948,2]
[354839453,1740731448961,-151.0,0.00017948,2]
[354839454,1740731448971,-151.0,0.00017948,2]
[354839455,1740731448981,-151.0,0.00017948,2]
[354839456,1740731448991,-151.0,0.00017948,2]
[354839457,1740731449001,-151.0,0.00017948,2]
[354839458,1740731449011,-151.0,0.00017948,2]
[354839459,1740731449020,-33747.97490942,0.00017948,2]
[354839460,1740731449031,-2999.99,0.00018,2]
[354839461,1740731449041,-1862.9,0.00018,2]
[354839462,1740731449050,-306.2692113,0.00018,2]
[354839463,1740731449060,-153.37,0.00018018,2]
[354839464,1740731449072,-283.0,0.00018021,2]
[354839465,1740731449082,-177.191596,0.00018021,2]
[354839466,1740731449092,-151.0,0.00018021,2]
[354839467,1740731449102,-151.0,0.00018021,2]
[354839468,1740731449112,-153.37,0.00018117,2]
[354839469,1740731449122,-151.0,0.00018136,2]
[354839470,1740731449131,-184.59,0.00018151,2]
[354839471,1740731449141,-500.0,0.00018164,2]
[354839472,1740731449151,-23055.32784663,0.00018196,2]
[354839473,1740731449160,-151.0,0.00018196,2]
[354839474,1740731449169,-153.37,0.00018216,2]
[354839475,1740731449179,-8698.02,0.00018276,2]
[354839476,1740731449189,-150.0,0.00018294,2]
[354839477,1740731449198,-153.37,0.00018315,2]
[354839478,1740731449207,-200.0,0.00018396,2]
[354839479,1740731449217,-153.37,0.00018414,2]
[354839480,1740731449226,-153.37,0.00018513,2]
[354839481,1740731449235,-247.94206619,0.000186,2]
[354839482,1740731449244,-302.81269776,0.00018673,2]
[354839483,1740731449254,-522.40874151,0.00018673,2]
[354839484,1740731449263,-274.740998,0.000187,2]
[354839485,1740731449273,-207.486996,0.000187,2]
[354839486,1740731449282,-151.0,0.000187,2]
[354839487,1740731449292,-208.339838,0.000187,2]
[354839488,1740731449301,-159.23425,0.000187,2]
[354839489,1740731449310,-151.0,0.000187,2]
[354839490,1740731449322,-184.729817,0.000187,2]
[354839491,1740731449331,-151.0,0.000187,2]
[354839492,1740731449341,-151.0,0.000187,2]
[354839493,1740731449349,-24499.75302081,0.000187,2]
[354839494,1740731449358,-24499.7530206,0.000187,2]
[354839495,1740731449368,-24499.7530206,0.000187,2]
[354839496,1740731449376,-151.0,0.000187,2]
[354839497,1740731449386,-151.0,0.000187,2]
[354839498,1740731449396,-258.398003,0.000187,2]
[354839499,1740731449405,-159.23425,0.00018884,2]
[354839500,1740731449415,-151.0,0.00018884,2]
[354839501,1740731449425,-503.48624474,0.00018926,2]
[354839502,1740731449435,-15236.66556483,0.00019,5]
[354839503,1740731449445,-170.82,0.00019035,2]
[354839504,1740731449456,-333.09,0.00019339,2]
[354839505,1740731449466,-1346.72,0.00019339,2]
[354839506,1740731449476,-171.53,0.00019415,2]
[354839507,1740731449486,-297.58815986,0.00019442,2]
[354839508,1740731449496,-24499.7530206,0.00019452,2]
[354839509,1740731449506,-885.6955198,0.00019455,2]
[354839510,1740731449516,-151.0,0.00019455,2]
[354839511,1740731449526,-152.77,0.00019506,2]
[354839512,1740731449539,-2389.0,0.00019567,2]
[354839513,1740731449549,-159.23425,0.00019567,2]
[354839514,1740731449559,-2073.03,0.00019616,2]
[354839515,1740731449572,-152.77,0.00019645,2]
[354839516,1740731449582,-1000.0,0.00019691,2]
[354839517,1740731449592,-152.77,0.00019784,2]
[354839518,1740731449602,-184.59,0.00019802,2]
[354839519,1740731449618,-23055.32784663,0.00019844,2]
[354839520,1740731449628,-152.77,0.00019923,2]
[354839521,1740731449638,-507.74,0.00019939,2]
[354839522,1740731449648,-1398.25650767,0.0002,5]
[354839523,1740731449658,-6308.95998071,0.0002,4]
[354839524,1740731449668,-5098.92569839,0.0002,2]
[354839525,1740731449678,-566.0215784,0.0002,4]
[354839526,1740731449687,-2000.0,0.0002,4]
[354839527,1740731449696,-200.47877,0.0002,2]
[354839528,1740731449706,-152.77,0.00020063,2]
[354839529,1740731449715,-641.96,0.00020195,2]
[354839530,1740731449725,-152.77,0.00020202,2]
[354839531,1740731449734,-152.77,0.00020341,2]
[354839532,1740731449744,-159.23425,0.00020456,2]
[354839533,1740731449753,-151.0,0.00020456,2]
[354839534,1740731449763,-152.77,0.00020481,2]
[354839535,1740731449773,-152.77,0.0002062,2]
[354839536,1740731449783,-152.77,0.00020759,2]
[354839537,1740731449792,-600.91089645,0.000208,2]
[354839538,1740731449803,-1054.0,0.000208,2]
[354839539,1740731449812,-152.77,0.00020899,2]
[354839540,1740731449825,-24499.7530206,0.00020969,2]
[354839541,1740731449835,-250.0,0.00021,2]
[354839542,1740731449844,-152.77,0.00021038,2]
[354839543,1740731449854,-159.23425,0.000211,2]
[354839544,1740731449864,-151.0,0.000211,2]
[354839545,1740731449873,-152.77,0.00021177,2]
[354839546,1740731449882,-152.77,0.00021317,2]
[354839547,1740731449892,-152.77,0.00021456,2]
[354839548,1740731449902,-23055.32784663,0.00021492,2]
[354839549,1740731449912,-338.05684415,0.00021641,2]
[354839550,1740731449921,-1000.0,0.00021879,2]
[354839551,1740731449930,-183.33,0.00021918,2]
[354839552,1740731449940,-175.36,0.00022017,2]
[354839553,1740731449950,-507.74,0.00022154,2]
[354839554,1740731449959,-170.82,0.00022176,2]
[354839555,1740731449968,-171.53,0.00022189,2]
[354839556,1740731449977,-641.96,0.00022459,2]
[354839557,1740731449987,-159.234245,0.00022486,7]
[354839558,1740731449996,-24499.7530206,0.00022486,3]
[354839559,1740731450006,-188.66,0.00022512,2]
[354839560,1740731450015,-968.51998476,0.00022719,2]
[354839561,1740731450024,-200.0,0.00023,2]
[354839562,1740731450033,-300.0,0.00023,2]
[354839563,1740731450042,-175.36,0.00023118,2]
[354839564,1740731450052,-23055.32784663,0.0002314,2]
[354839565,1740731450061,-1096.0,0.00023319,2]
[354839566,1740731450074,-2000.0,0.00023333,4]
[354839567,1740731450084,-175.66,0.00023836,2]
[354839568,1740731450093,-318.59244467,0.00023913,2]
[354839569,1740731450102,-23565.10673508,0.00024,2]
[354839570,1740731450112,-24499.7530206,0.00024003,3]
[354839571,1740731450121,-780.0782225,0.0002402,2]
[354839572,1740731450131,-1000.0,0.00024067,2]
[354839573,1740731450140,-403.82556959,0.0002421,2]
[354839574,1740731450150,-3538.48735343,0.0002421,2]
[354839575,1740731450159,-175.36,0.00024219,2]
[354839576,1740731450168,-507.74,0.00024369,2]
[354839577,1740731450177,-796.05,0.000245,7]
[354839578,1740731450188,-362.0,0.00024682,120]
[354839579,1740731450197,-362.0,0.00024692,120]
[354839580,1740731450207,-362.0,0.00024702,120]
[354839581,1740731450218,-159.32,0.00024712,30]
[354839582,1740731450229,-641.96,0.00024723,2]
[354839583,1740731450240,-23055.32784663,0.00024788,2]
[354839584,1740731450249,-579.94,0.00024892,120]
[354839585,1740731450259,-208.49196304,0.00024895,2]
[354839586,1740731450268,-171.53,0.00024963,120]
[354839587,1740731450278,-350.0,0.00025,2]
[354839588,1740731450289,-6054.27997977,0.00025,60]
[354839589,1740731450299,-200.47877,0.00025,2]
[354839590,1740731450308,-212.9943475,0.00025207,120]
[354839591,1740731450320,-24499.7530206,0.00025521,4]
[354839592,1740731450329,-885.6955198,0.00025748,4]
[354839593,1740731450338,-573.86039474,0.0002599,2]
[354839594,1740731450346,-4433.65,0.00026,2]
[354839595,1740731450355,-500.0,0.00026,30]
[354839596,1740731450365,-500.0,0.00026,30]
[354839597,1740731450374,-500.0,0.00026,30]
[354839598,1740731450384,-1000.0,0.00026255,2]
[354839599,1740731450393,-23055.32784663,0.00026436,2]
[354839600,1740731450403,-2000.0,0.00026667,4]
[354839601,1740731450412,-641.96,0.00026987,2]
[354839602,1740731450543,-250.0,0.00027,2]
[354839603,1740731450556,-989.67979584,0.00027,2]
[354839604,1740731450568,-400.0,0.00027,2]
[354839605,1740731450579,-24499.7530206,0.00027038,4]
[354839606,1740731450589,-192.18345314,0.000275,2]
[354839607,1740731450598,-500.0,0.00027892,30]
[354839608,1740731450608,-500.0,0.00027892,30]
[354839609,1740731450618,-500.0,0.00027892,30]
[354839610,1740731450630,-500.0,0.00027892,30]
[354839611,1740731450640,-501.75201487,0.00027892,30]
[354839612,1740731450650,-506.96961832,0.00027892,30]
[354839613,1740731450659,-502.51021982,0.00027892,30]
[354839614,1740731450669,-500.0,0.00027892,30]
[354839615,1740731450678,-502.19271858,0.00027892,30]
[354839616,1740731450688,-500.0,0.00027892,30]
[354839617,1740731450698,-1056.52371296,0.00028,2]
[354839618,1740731450707,-24867.41226146,0.00028,2]
[354839619,1740731450716,-497.34824523,0.00028,2]
[354839620,1740731450726,-23055.32784663,0.00028084,2]
[354839621,1740731450737,-785.0,0.00028339,2]
[354839622,1740731450746,-908.0,0.00028339,2]
[354839623,1740731450755,-539.0,0.00028339,2]
[354839624,1740731450765,-500.0,0.00028339,2]
[354839625,1740731450774,-1266.0,0.00028339,2]
[354839626,1740731450784,-4031.0,0.00028339,2]
[354839627,1740731450794,-477.992,0.00028339,2]
[354839628,1740731450804,-150.0,0.00028339,2]
[354839629,1740731450814,-1297.985,0.00028339,2]
[354839630,1740731450826,-2029.0,0.00028339,2]
[354839631,1740731450835,-3919.0,0.00028339,2]
[354839632,1740731450845,-295.788,0.00028339,2]
[354839633,1740731450854,-202.86,0.00028412,2]
[354839634,1740731450863,-24499.7530206,0.00028555,5]
[354839635,1740731450873,-171.78462,0.00028704,30]
[354839636,1740731450883,-947.93454532,0.00028881,2]
[354839637,1740731450892,-539058.34603456,0.00029,2]
[354839638,1740731450901,-450.0,0.00029,2]
[354839639,1740731450910,-1782.0,0.000291,2]
[354839640,1740731450919,-1814.999452,0.000292,2]
[354839641,1740731450928,-641.96,0.0002925,2]
[354839642,1740731450938,-1900.0,0.000295,2]
[354839643,1740731450947,-23055.32784663,0.00029732,2]
[354839644,1740731450956,-9648.0,0.000298,7]
[354839645,1740731450965,-576809.23952779,0.000298,2]
[354839646,1740731450974,-250.0,0.00029831,2]
[354839647,1740731450983,-232.0,0.00029831,2]
[354839648,1740731450991,-150.0,0.00029831,2]
[354839649,1740731451002,-150.385,0.00029831,2]
[354839650,1740731451011,-150.839,0.00029831,2]
[354839651,1740731451021,-213.839,0.00029831,2]
[354839652,1740731451032,-1000.0,0.00029881,120]
[354839653,1740731451041,-2600.0,0.00029881,120]
[354839654,1740731451051,-1380.74072637,0.00029881,120]
[354839655,1740731451060,-999.999999,0.00029881,120]
[354839656,1740731451072,-79625.00175457,0.00029881,30]
[354839657,1740731451081,-1764.49878619,0.00029881,120]
[354839658,1740731451091,-8817.49297731,0.00029881,30]
[354839659,1740731451100,-18358.23867253,0.00029881,2]
[354839660,1740731451110,-12691.94963412,0.00029881,2]
[354839661,1740731451119,-22581.43519841,0.00029881,2]
[354839662,1740731451128,-1903.77792465,0.00029881,2]
[354839663,1740731451137,-182.37597516,0.00029881,2]
[354839664,1740731451146,-643.0,0.00029881,2]
[354839665,1740731451156,-961.38616039,0.00029881,2]
[354839666,1740731451165,-567.82793085,0.00029881,2]
[354839667,1740731451173,-1820.19231679,0.00029881,2]
[354839668,1740731451183,-3214.05466568,0.00029881,2]
[354839669,1740731451193,-173.7925219,0.00029881,2]
[354839670,1740731451202,-1453.1671381,0.00029881,2]
[354839671,1740731451212,-550.0,0.00029881,2]
[354839672,1740731451222,-998.93686953,0.00029881,2]
[354839673,1740731451231,-226.88750806,0.00029881,2]
[354839674,1740731451242,-172.18905617,0.00029881,2]
[354839675,1740731451252,-372.04280968,0.00029881,2]
[354839676,1740731451261,-1457.2966143,0.00029881,2]
[354839677,1740731451271,-1024.14829461,0.00029881,2]
[354839678,1740731451281,-558.03875566,0.00029881,2]
[354839679,1740731451292,-150.0,0.00029881,2]
[354839680,1740731451301,-601.58291213,0.00029881,2]
[354839681,1740731451310,-620.61310951,0.00029881,2]
[354839682,1740731451322,-212.75115486,0.00029881,2]
[354839683,1740731451332,-445.91425927,0.00029881,2]
[354839684,1740731451341,-1058.01158517,0.00029881,2]
[354839685,1740731451350,-2500.0,0.00029881,2]
[354839686,1740731451359,-574.40458709,0.00029881,2]
[354839687,1740731451368,-339.31607833,0.00029881,2]
[354839688,1740731451378,-1100.0,0.00029881,2]
[354839689,1740731451387,-904.57535169,0.00029881,2]
[354839690,1740731451397,-477.5223579,0.00029881,2]
[354839691,1740731451406,-227.65066904,0.00029881,2]
[354839692,1740731451416,-168.80072736,0.00029881,2]
[354839693,1740731451426,-1572.68695291,0.00029881,2]
[354839694,1740731451435,-542.95826383,0.00029881,2]
[354839695,1740731451445,-1002.68938967,0.00029881,2]
[354839696,1740731451455,-361.52714128,0.00029881,2]
[354839697,1740731451464,-2185.72136584,0.00029881,2]
[354839698,1740731451474,-281.14986713,0.00029881,2]
[354839699,1740731451483,-14639.71650461,0.00029881,2]
[354839700,1740731451493,-1820.16451761,0.00029881,2]
[354839701,1740731451502,-61529.72943472,0.00029881,30]
[354839702,1740731451512,-13937.29236068,0.00029881,2]
[354839703,1740731451522,-218.31537361,0.00029881,2]
[354839704,1740731451538,-21000.0,0.00029881,30]
[354839705,1740731451547,-10103.65294511,0.00029881,2]
[354839706,1740731451556,-279.0,0.00029881,2]
[354839707,1740731451568,-8072.29684811,0.00029881,30]
[354839708,1740731451579,-1690.16643411,0.00029881,2]
[354839709,1740731451588,-200.87981927,0.00029881,2]
[354839710,1740731451597,-280.05322937,0.00029881,2]
[354839711,1740731451607,-5630.3452802,0.00029881,2]
[354839712,1740731451617,-1003.62601482,0.00029881,2]
[354839713,1740731451626,-162.91,0.00029881,2]
[354839714,1740731451636,-36975.55035962,0.00029881,2]
[354839715,1740731451646,-1107.66,0.00029881,2]
[354839716,1740731451655,-1000.0,0.00029881,30]
[354839717,1740731451664,-9999.999999,0.00029881,2]
[354839718,1740731451674,-495.36484998,0.00029881,2]
[354839719,1740731451685,-200.47876,0.0003,2]
[354839720,1740731451694,-24499.7530206,0.00030072,5]
[354839721,1740731451704,-159.32,0.00030186,30]
[354839722,1740731451713,-500.0,0.00031,2]
[354839723,1740731451724,-499.999999,0.0003121,2]
[354839724,1740731451734,-202.86,0.00031253,2]
[354839725,1740731451743,-783.0,0.00031339,2]
[354839726,1740731451752,-1276.0,0.00031339,2]
[354839727,1740731451762,-2025.0,0.00031339,2]
[354839728,1740731451772,-641.96,0.00031514,2]
[354839729,1740731451782,-24499.7530206,0.0003159,6]
[354839730,1740731451791,-150.0,0.00032831,2]
[354839731,1740731451801,-150.0,0.00032831,2]
[354839732,1740731451810,-150.0,0.00032831,2]
[354839733,1740731451823,-150.0,0.00032831,2]
[354839734,1740731451833,-550.0,0.00033,2]
[354839735,1740731451843,-24499.7530206,0.00033107,6]
[354839736,1740731451853,-641.96,0.00033778,2]
[354839737,1740731451863,-885.6955198,0.00034077,4]
[354839738,1740731451873,-150.0,0.00034548,10]
[354839739,1740731451883,-24499.7530206,0.00034624,7]
[354839740,1740731451893,-208.49196304,0.0003489,7]
[354839741,1740731451903,-2380.89000104,0.00035,90]
[354839742,1740731451913,-600.0,0.00035,2]
[354839743,1740731451923,-382.21645025,0.00035,2]
[354839744,1740731451934,-132091.8638954,0.00035,30]
[354839745,1740731451943,-200.47877,0.00035,2]
[354839746,1740731451953,-45435.52912457,0.00035,8]
[354839747,1740731451962,-5748.79393259,0.00035432,2]
[354839748,1740731451972,-183.33,0.00035616,2]
[354839749,1740731451981,-439.81,0.00035857,2]
[354839750,1740731451990,-988.5,0.00035857,2]
[354839751,1740731452001,-150.0,0.00035857,2]
[354839752,1740731452010,-344.31,0.00035857,2]
[354839753,1740731452019,-300.0,0.00035857,2]
[354839754,1740731452029,-150.0,0.00035857,2]
[354839755,1740731452038,-439.81,0.00035857,2]
[354839756,1740731452048,-777.07,0.00035857,2]
[354839757,1740731452057,-988.5,0.00035857,2]
[354839758,1740731452069,-344.31,0.00035857,2]
[354839759,1740731452079,-150.0,0.00035857,2]
[354839760,1740731452088,-440.84,0.00035857,2]
[354839761,1740731452097,-777.07,0.00035857,2]
[354839762,1740731452107,-988.5,0.00035857,2]
[354839763,1740731452116,-439.81,0.00035857,2]
[354839764,1740731452126,-150.0,0.00035857,2]
[354839765,1740731452136,-641.96,0.00036042,2]
[354839766,1740731452146,-24499.7530206,0.00036141,7]
[354839767,1740731452156,-2206.0,0.00037,117]
[354839768,1740731452167,-650.0,0.00037,2]
[354839769,1740731452176,-24499.7530206,0.00037659,7]
[354839770,1740731452186,-247.94206619,0.0003775,2]
[354839771,1740731452196,-828.65767021,0.00038,30]
[354839772,1740731452208,-641.96,0.00038306,2]
[354839773,1740731452218,-2427.7,0.00038909,117]
[354839774,1740731452228,-299.3248086,0.00038962,2]
[354839775,1740731452239,-6525.65141587,0.00039,30]
[354839776,1740731452249,-2187.51523366,0.00039,2]
[354839777,1740731452260,-700.0,0.00039,2]
[354839778,1740731452270,-150.0,0.00039009,2]
[354839779,1740731452280,-150.0,0.00039028,2]
[354839780,1740731452289,-150.0,0.0003904,2]
[354839781,1740731452299,-150.0,0.00039091,2]
[354839782,1740731452309,-150.0,0.00039093,2]
[354839783,1740731452323,-150.0,0.000391,2]
[354839784,1740731452333,-150.0,0.00039159,2]
[354839785,1740731452342,-24499.7530206,0.00039176,8]
[354839786,1740731452352,-1088.82061423,0.000392,5]
[354839787,1740731452362,-359.81,0.00039452,2]
[354839788,1740731452372,-151.99,0.00039452,2]
[354839789,1740731452382,-2000.0,0.00039627,5]
[354839790,1740731452391,-150.0,0.000397,2]
[354839791,1740731452401,-1000.0,0.00039719,7]
[354839792,1740731452410,-152.45983592,0.00039813,2]
[354839793,1740731452420,-500.0,0.00039867,2]
[354839794,1740731452430,-500.0,0.00039867,2]
[354839795,1740731452441,-500.0,0.00039867,2]
[354839796,1740731452450,-500.0,0.00039867,2]
[354839797,1740731452461,-500.0,0.00039867,2]
[354839798,1740731452471,-679.0,0.00039867,2]
[354839799,1740731452481,-152.92839495,0.00039975,7]
[354839800,1740731452492,-297.58815986,0.0003999,7]
[354839801,1740731452502,-167.67,0.00039999,2]
[354839802,1740731452511,-323868.84270987,0.0004,2]
[354839803,1740731452521,-51143.01251101,0.0004,120]
[354839804,1740731452532,-515.881431,0.0004,41]
[354839805,1740731452540,-500.0,0.0004,120]
[354839806,1740731452551,-200.47877,0.0004,2]
[354839807,1740731452562,-151.189,0.00040302,30]
[354839808,1740731452576,-1718.7297423,0.00040514,2]
[354839809,1740731452586,-809.9717505,0.00040542,2]
[354839810,1740731452596,-641.96,0.0004057,2]
[354839811,1740731452606,-748.0,0.000406,30]
[354839812,1740731452615,-24499.7530206,0.00040693,8]
[354839813,1740731452625,-5295.59,0.00040818,117]
[354839814,1740731452635,-843.47121658,0.00041,30]
[354839815,1740731452644,-750.0,0.00041,2]
[354839816,1740731452653,-150.0,0.00041086,120]
[354839817,1740731452667,-4000.0,0.00041096,30]
[354839818,1740731452676,-1500.0,0.00041096,120]
[354839819,1740731452686,-164.41385766,0.00041096,2]
[354839820,1740731452695,-159.32,0.00041132,120]
[354839821,1740731452705,-500.0,0.000414,120]
[354839822,1740731452714,-200.0,0.000414,120]
[354839823,1740731452723,-234.0,0.000415,30]
[354839824,1740731452733,-965.0,0.000415,30]
[354839825,1740731452743,-237.96,0.000417,7]
[354839826,1740731452752,-657.8803685,0.00041999,120]
[354839827,1740731452761,-29031.14039388,0.00042,120]
[354839828,1740731452771,-7486.02610216,0.00042,120]
[354839829,1740731452780,-24499.7530206,0.0004221,9]
[354839830,1740731452790,-151.23,0.0004222,2]
[354839831,1740731452799,-5736.9,0.00042727,117]
[354839832,1740731452810,-167.68,0.00042796,15]
[354839833,1740731452822,-641.96,0.00042834,2]
[354839834,1740731452832,-214.0,0.00043,7]
[354839835,1740731452842,-62039.79449902,0.00043,10]
[354839836,1740731452971,-171.78462,0.000432,120]
[354839837,1740731452982,-150.0,0.00043377,2]
[354839838,1740731452992,-155.85499005,0.000435,120]
[354839839,1740731453002,-150.0,0.00043504,2]
[354839840,1740731453011,-954.94,0.00043513,2]
[354839841,1740731453020,-9999.99,0.00043513,2]
[354839842,1740731453030,-677.94,0.00043513,2]
[354839843,1740731453039,-150.0,0.00043594,2]
[354839844,1740731453050,-150.0,0.00043691,2]
[354839845,1740731453059,-150.0,0.00043699,2]
[354839846,1740731453072,-150.0,0.00043704,2]
[354839847,1740731453081,-24499.7530206,0.00043728,9]
[354839848,1740731453091,-150.0,0.00043781,2]
[354839849,1740731453101,-150.0,0.00043801,2]
[354839850,1740731453110,-150.0,0.00043828,2]
[354839851,1740731453119,-150.0,0.00043897,2]
[354839852,1740731453129,-150.0,0.0004397,2]
[354839853,1740731453138,-150.0,0.00043998,2]
[354839854,1740731453147,-1000.0,0.00044,120]
[354839855,1740731453157,-500000.0,0.00044,60]
[354839856,1740731453166,-200.0,0.00044,120]